{"text_format":"3","workbook":"xlsx","n_sheets":3,"sheets":["Uzdevumi","Mēneša skats","Nedēļas skats"],"not_rendered":{"images":4,"defined_names":16},"read":"whole","date_system":"1900"}

{"sheet":"Uzdevumi","index":0,"n_rows":15,"n_cols":3,"rows_kept":15}
[null,"MĒNEŠA SKATS","NEDĒĻAS SKATS"]
[null," UZDEVUMI"]
[null,"APRAKSTS","IZPILDES DATUMS"]
[null,"1. uzdevums",{"$f":"TODAY()","v":"2016-11-29"}]
[null,"2. uzdevums",{"$f":"TODAY()+15","v":"2016-12-14"}]
[null,"3. uzdevums",{"$f":"TODAY()+30","v":"2016-12-29"}]
[null,"4. uzdevums",{"$f":"TODAY()+45","v":"2017-01-13"}]
[null,"5. uzdevums",{"$f":"TODAY()+60","v":"2017-01-28"}]
[null,"6. uzdevums",{"$f":"TODAY()+75","v":"2017-02-12"}]
[null,"7. uzdevums",{"$f":"TODAY()+90","v":"2017-02-27"}]
[null,"8. uzdevums",{"$f":"TODAY()+105","v":"2017-03-14"}]
[null,"9. uzdevums",{"$f":"TODAY()+115","v":"2017-03-24"}]
[null,"10. uzdevums",{"$f":"TODAY()+130","v":"2017-04-08"}]
[null,"11. uzdevums",{"$f":"TODAY()+145","v":"2017-04-23"}]
[null,"12. uzdevums",{"$f":"TODAY()+160","v":"2017-05-08"}]

{"sheet":"Mēneša skats","index":1,"n_rows":17,"n_cols":8,"rows_kept":17,"merged":[[3,1,3,7]]}
[null,"UZDEVUMI","NEDĒĻAS SKATS"]
[null,"Atlasiet mēnesi:","Ievadiet gadu:"]
[null,"Septembris",{"$f":"YEAR(TODAY())","v":2016}]
[null," MĒNEŠA SKATS"]
[null,"PIRMDIENA","OTRDIENA","TREŠDIENA","CETURTDIENA","PIEKTDIENA","SESTDIENA","SVĒTDIENA"]
[null,{"$f":"IF(WEEKDAY(DATEVALUE(\"1\"&MēMēnesis&MēGads)-1)=COLUMN(A$2),1,IF(LEN(A6)>0,A6+1,\"\"))","v":""},"","",1,2,3,4]
[null,{"$f":"IF(LEN(B6)=0,\"\",IF(COUNTIF(Uzdevumi[IZPILDES DATUMS],DATE(MēGads,MēMēnešaNum,B6))>0,\"Tuvojas termiņš!\",\"\"))","v":""},{"$f":"IF(LEN(C6)=0,\"\",IF(COUNTIF(Uzdevumi[IZPILDES DATUMS],DATE(MēGads,MēMēnešaNum,C6))>0,\"Tuvojas termiņš!\",\"\"))","v":""},{"$f":"IF(LEN(D6)=0,\"\",IF(COUNTIF(Uzdevumi[IZPILDES DATUMS],DATE(MēGads,MēMēnešaNum,D6))>0,\"Tuvojas termiņš!\",\"\"))","v":""},{"$f":"IF(LEN(E6)=0,\"\",IF(COUNTIF(Uzdevumi[IZPILDES DATUMS],DATE(MēGads,MēMēnešaNum,E6))>0,\"Tuvojas termiņš!\",\"\"))","v":""},{"$f":"IF(LEN(F6)=0,\"\",IF(COUNTIF(Uzdevumi[IZPILDES DATUMS],DATE(MēGads,MēMēnešaNum,F6))>0,\"Tuvojas termiņš!\",\"\"))","v":""},{"$f":"IF(LEN(G6)=0,\"\",IF(COUNTIF(Uzdevumi[IZPILDES DATUMS],DATE(MēGads,MēMēnešaNum,G6))>0,\"Tuvojas termiņš!\",\"\"))","v":""},{"$f":"IF(LEN(H6)=0,\"\",IF(COUNTIF(Uzdevumi[IZPILDES DATUMS],DATE(MēGads,MēMēnešaNum,H6))>0,\"Tuvojas termiņš!\",\"\"))","v":""}]
[null,{"$f":"IF(LEN(H6)>0,IF(H6=DAY(DATE(MēGads,MēMēnešaNum+1,0)),\"\",H6+1),\"\")","v":5},{"$f":"IF(LEN(B8)>0,IF(B8=DAY(DATE(MēGads,MēMēnešaNum+1,0)),\"\",B8+1),\"\")","v":6},7,8,9,10,11]
[null,{"$f":"IF(LEN(B8)=0,\"\",IF(COUNTIF(Uzdevumi[IZPILDES DATUMS],DATE(MēGads,MēMēnešaNum,B8))>0,\"Tuvojas termiņš!\",\"\"))","v":""},{"$f":"IF(LEN(C8)=0,\"\",IF(COUNTIF(Uzdevumi[IZPILDES DATUMS],DATE(MēGads,MēMēnešaNum,C8))>0,\"Tuvojas termiņš!\",\"\"))","v":""},{"$f":"IF(LEN(D8)=0,\"\",IF(COUNTIF(Uzdevumi[IZPILDES DATUMS],DATE(MēGads,MēMēnešaNum,D8))>0,\"Tuvojas termiņš!\",\"\"))","v":""},{"$f":"IF(LEN(E8)=0,\"\",IF(COUNTIF(Uzdevumi[IZPILDES DATUMS],DATE(MēGads,MēMēnešaNum,E8))>0,\"Tuvojas termiņš!\",\"\"))","v":""},{"$f":"IF(LEN(F8)=0,\"\",IF(COUNTIF(Uzdevumi[IZPILDES DATUMS],DATE(MēGads,MēMēnešaNum,F8))>0,\"Tuvojas termiņš!\",\"\"))","v":""},{"$f":"IF(LEN(G8)=0,\"\",IF(COUNTIF(Uzdevumi[IZPILDES DATUMS],DATE(MēGads,MēMēnešaNum,G8))>0,\"Tuvojas termiņš!\",\"\"))","v":""},{"$f":"IF(LEN(H8)=0,\"\",IF(COUNTIF(Uzdevumi[IZPILDES DATUMS],DATE(MēGads,MēMēnešaNum,H8))>0,\"Tuvojas termiņš!\",\"\"))","v":""}]
[null,{"$f":"IF(LEN(H8)>0,IF(H8=DAY(DATE(MēGads,MēMēnešaNum+1,0)),\"\",H8+1),\"\")","v":12},{"$f":"IF(LEN(B10)>0,IF(B10=DAY(DATE(MēGads,MēMēnešaNum+1,0)),\"\",B10+1),\"\")","v":13},14,15,16,17,18]
[null,{"$f":"IF(LEN(B10)=0,\"\",IF(COUNTIF(Uzdevumi[IZPILDES DATUMS],DATE(MēGads,MēMēnešaNum,B10))>0,\"Tuvojas termiņš!\",\"\"))","v":""},{"$f":"IF(LEN(C10)=0,\"\",IF(COUNTIF(Uzdevumi[IZPILDES DATUMS],DATE(MēGads,MēMēnešaNum,C10))>0,\"Tuvojas termiņš!\",\"\"))","v":""},{"$f":"IF(LEN(D10)=0,\"\",IF(COUNTIF(Uzdevumi[IZPILDES DATUMS],DATE(MēGads,MēMēnešaNum,D10))>0,\"Tuvojas termiņš!\",\"\"))","v":""},{"$f":"IF(LEN(E10)=0,\"\",IF(COUNTIF(Uzdevumi[IZPILDES DATUMS],DATE(MēGads,MēMēnešaNum,E10))>0,\"Tuvojas termiņš!\",\"\"))","v":""},{"$f":"IF(LEN(F10)=0,\"\",IF(COUNTIF(Uzdevumi[IZPILDES DATUMS],DATE(MēGads,MēMēnešaNum,F10))>0,\"Tuvojas termiņš!\",\"\"))","v":""},{"$f":"IF(LEN(G10)=0,\"\",IF(COUNTIF(Uzdevumi[IZPILDES DATUMS],DATE(MēGads,MēMēnešaNum,G10))>0,\"Tuvojas termiņš!\",\"\"))","v":""},{"$f":"IF(LEN(H10)=0,\"\",IF(COUNTIF(Uzdevumi[IZPILDES DATUMS],DATE(MēGads,MēMēnešaNum,H10))>0,\"Tuvojas termiņš!\",\"\"))","v":""}]
[null,{"$f":"IF(LEN(H10)>0,IF(H10=DAY(DATE(MēGads,MēMēnešaNum+1,0)),\"\",H10+1),\"\")","v":19},{"$f":"IF(LEN(B12)>0,IF(B12=DAY(DATE(MēGads,MēMēnešaNum+1,0)),\"\",B12+1),\"\")","v":20},21,22,23,24,25]
[null,{"$f":"IF(LEN(B12)=0,\"\",IF(COUNTIF(Uzdevumi[IZPILDES DATUMS],DATE(MēGads,MēMēnešaNum,B12))>0,\"Tuvojas termiņš!\",\"\"))","v":""},{"$f":"IF(LEN(C12)=0,\"\",IF(COUNTIF(Uzdevumi[IZPILDES DATUMS],DATE(MēGads,MēMēnešaNum,C12))>0,\"Tuvojas termiņš!\",\"\"))","v":""},{"$f":"IF(LEN(D12)=0,\"\",IF(COUNTIF(Uzdevumi[IZPILDES DATUMS],DATE(MēGads,MēMēnešaNum,D12))>0,\"Tuvojas termiņš!\",\"\"))","v":""},{"$f":"IF(LEN(E12)=0,\"\",IF(COUNTIF(Uzdevumi[IZPILDES DATUMS],DATE(MēGads,MēMēnešaNum,E12))>0,\"Tuvojas termiņš!\",\"\"))","v":""},{"$f":"IF(LEN(F12)=0,\"\",IF(COUNTIF(Uzdevumi[IZPILDES DATUMS],DATE(MēGads,MēMēnešaNum,F12))>0,\"Tuvojas termiņš!\",\"\"))","v":""},{"$f":"IF(LEN(G12)=0,\"\",IF(COUNTIF(Uzdevumi[IZPILDES DATUMS],DATE(MēGads,MēMēnešaNum,G12))>0,\"Tuvojas termiņš!\",\"\"))","v":""},{"$f":"IF(LEN(H12)=0,\"\",IF(COUNTIF(Uzdevumi[IZPILDES DATUMS],DATE(MēGads,MēMēnešaNum,H12))>0,\"Tuvojas termiņš!\",\"\"))","v":""}]
[null,{"$f":"IF(LEN(H12)>0,IF(H12=DAY(DATE(MēGads,MēMēnešaNum+1,0)),\"\",H12+1),\"\")","v":26},{"$f":"IF(LEN(B14)>0,IF(B14=DAY(DATE(MēGads,MēMēnešaNum+1,0)),\"\",B14+1),\"\")","v":27},28,29,30,"",""]
[null,{"$f":"IF(LEN(B14)=0,\"\",IF(COUNTIF(Uzdevumi[IZPILDES DATUMS],DATE(MēGads,MēMēnešaNum,B14))>0,\"Tuvojas termiņš!\",\"\"))","v":""},{"$f":"IF(LEN(C14)=0,\"\",IF(COUNTIF(Uzdevumi[IZPILDES DATUMS],DATE(MēGads,MēMēnešaNum,C14))>0,\"Tuvojas termiņš!\",\"\"))","v":""},{"$f":"IF(LEN(D14)=0,\"\",IF(COUNTIF(Uzdevumi[IZPILDES DATUMS],DATE(MēGads,MēMēnešaNum,D14))>0,\"Tuvojas termiņš!\",\"\"))","v":""},{"$f":"IF(LEN(E14)=0,\"\",IF(COUNTIF(Uzdevumi[IZPILDES DATUMS],DATE(MēGads,MēMēnešaNum,E14))>0,\"Tuvojas termiņš!\",\"\"))","v":""},{"$f":"IF(LEN(F14)=0,\"\",IF(COUNTIF(Uzdevumi[IZPILDES DATUMS],DATE(MēGads,MēMēnešaNum,F14))>0,\"Tuvojas termiņš!\",\"\"))","v":""},{"$f":"IF(LEN(G14)=0,\"\",IF(COUNTIF(Uzdevumi[IZPILDES DATUMS],DATE(MēGads,MēMēnešaNum,G14))>0,\"Tuvojas termiņš!\",\"\"))","v":""},{"$f":"IF(LEN(H14)=0,\"\",IF(COUNTIF(Uzdevumi[IZPILDES DATUMS],DATE(MēGads,MēMēnešaNum,H14))>0,\"Tuvojas termiņš!\",\"\"))","v":""}]
[null,{"$f":"IF(LEN(H14)>0,IF(H14=DAY(DATE(MēGads,MēMēnešaNum+1,0)),\"\",H14+1),\"\")","v":""},{"$f":"IF(LEN(B16)>0,IF(B16=DAY(DATE(MēGads,MēMēnešaNum+1,0)),\"\",B16+1),\"\")","v":""},"","","","",""]
[null,{"$f":"IF(LEN(B16)=0,\"\",IF(COUNTIF(Uzdevumi[IZPILDES DATUMS],DATE(MēGads,MēMēnešaNum,B16))>0,\"Tuvojas termiņš!\",\"\"))","v":""},{"$f":"IF(LEN(C16)=0,\"\",IF(COUNTIF(Uzdevumi[IZPILDES DATUMS],DATE(MēGads,MēMēnešaNum,C16))>0,\"Tuvojas termiņš!\",\"\"))","v":""},{"$f":"IF(LEN(D16)=0,\"\",IF(COUNTIF(Uzdevumi[IZPILDES DATUMS],DATE(MēGads,MēMēnešaNum,D16))>0,\"Tuvojas termiņš!\",\"\"))","v":""},{"$f":"IF(LEN(E16)=0,\"\",IF(COUNTIF(Uzdevumi[IZPILDES DATUMS],DATE(MēGads,MēMēnešaNum,E16))>0,\"Tuvojas termiņš!\",\"\"))","v":""},{"$f":"IF(LEN(F16)=0,\"\",IF(COUNTIF(Uzdevumi[IZPILDES DATUMS],DATE(MēGads,MēMēnešaNum,F16))>0,\"Tuvojas termiņš!\",\"\"))","v":""},{"$f":"IF(LEN(G16)=0,\"\",IF(COUNTIF(Uzdevumi[IZPILDES DATUMS],DATE(MēGads,MēMēnešaNum,G16))>0,\"Tuvojas termiņš!\",\"\"))","v":""},{"$f":"IF(LEN(H16)=0,\"\",IF(COUNTIF(Uzdevumi[IZPILDES DATUMS],DATE(MēGads,MēMēnešaNum,H16))>0,\"Tuvojas termiņš!\",\"\"))","v":""}]

{"sheet":"Nedēļas skats","index":2,"n_rows":17,"n_cols":8,"rows_kept":17,"merged":[[3,1,3,7]]}
[null,"UZDEVUMI","MĒNEŠA SKATS"]
[null,"Atlasiet mēnesi:","Ievadiet gadu:","Atlasiet nedēļas nr.:"]
[null,"Septembris",{"$f":"YEAR(TODAY())","v":2016},"1. nedēļa"]
[null," NEDĒĻAS SKATS"]
[null,{"$f":"IF(WEEKDAY(DATEVALUE(\"1\"&NeMēnesis&NedGads)-1)=COLUMN(A$2),1,IF(LEN(A5)>0,A5+1,\"\"))","v":""},"","",1,2,3,4]
[null,{"$f":"IF(LEN(H5)>0,IF(H5=MēnešaPēdējāDiena_Nedēļa,\"\",H5+1),\"\")","v":5},{"$f":"IF(LEN(B6)>0,IF(B6=MēnešaPēdējāDiena_Nedēļa,\"\",B6+1),\"\")","v":6},7,8,9,10,11]
[null,{"$f":"IF(LEN(H6)>0,IF(H6=MēnešaPēdējāDiena_Nedēļa,\"\",H6+1),\"\")","v":12},13,14,15,16,17,18]
[null,{"$f":"IF(LEN(H7)>0,IF(H7=MēnešaPēdējāDiena_Nedēļa,\"\",H7+1),\"\")","v":19},20,21,22,23,24,25]
[null,{"$f":"IF(LEN(H8)>0,IF(H8=MēnešaPēdējāDiena_Nedēļa,\"\",H8+1),\"\")","v":26},27,28,29,30,"",""]
[null,{"$f":"IF(LEN(H9)>0,IF(H9=MēnešaPēdējāDiena_Nedēļa,\"\",H9+1),\"\")","v":""},"","","","","",""]
[null,"PIRMDIENA","OTRDIENA","TREŠDIENA","CETURTDIENA","PIEKTDIENA","SESTDIENA","SVĒTDIENA"]
[null,{"$f":"IF(B14=\"\",IF(AND(ISNUMBER(A12),A12<MēnešaPēdējāDiena_Nedēļa),A12+1,\"\"),IF(B14<=7,\"\",INDEX(NeMēnešaSkats,NeNedēļa,COLUMN(A$2))-7))","v":""},"","","","","",""]
[null,{"$f":"IF(LEN(B12)=0,\"\",IF(COUNTIF(Uzdevumi[IZPILDES DATUMS],DATE(NedGads,NeMēnešaNum,B12))>0,\"Tuvojas termiņš!\",\"\"))","v":""},{"$f":"IF(LEN(C12)=0,\"\",IF(COUNTIF(Uzdevumi[IZPILDES DATUMS],DATE(NedGads,NeMēnešaNum,C12))>0,\"Tuvojas termiņš!\",\"\"))","v":""},{"$f":"IF(LEN(D12)=0,\"\",IF(COUNTIF(Uzdevumi[IZPILDES DATUMS],DATE(NedGads,NeMēnešaNum,D12))>0,\"Tuvojas termiņš!\",\"\"))","v":""},{"$f":"IF(LEN(E12)=0,\"\",IF(COUNTIF(Uzdevumi[IZPILDES DATUMS],DATE(NedGads,NeMēnešaNum,E12))>0,\"Tuvojas termiņš!\",\"\"))","v":""},{"$f":"IF(LEN(F12)=0,\"\",IF(COUNTIF(Uzdevumi[IZPILDES DATUMS],DATE(NedGads,NeMēnešaNum,F12))>0,\"Tuvojas termiņš!\",\"\"))","v":""},{"$f":"IF(LEN(G12)=0,\"\",IF(COUNTIF(Uzdevumi[IZPILDES DATUMS],DATE(NedGads,NeMēnešaNum,G12))>0,\"Tuvojas termiņš!\",\"\"))","v":""},{"$f":"IF(LEN(H12)=0,\"\",IF(COUNTIF(Uzdevumi[IZPILDES DATUMS],DATE(NedGads,NeMēnešaNum,H12))>0,\"Tuvojas termiņš!\",\"\"))","v":""}]
[null,{"$f":"INDEX(NeMēnešaSkats,NeNedēļa,COLUMN(A$2))","v":""},"","",1,2,3,4]
[null,{"$f":"IF(LEN(B14)=0,\"\",IF(COUNTIF(Uzdevumi[IZPILDES DATUMS],DATE(NedGads,NeMēnešaNum,B14))>0,\"Tuvojas termiņš!\",\"\"))","v":""},{"$f":"IF(LEN(C14)=0,\"\",IF(COUNTIF(Uzdevumi[IZPILDES DATUMS],DATE(NedGads,NeMēnešaNum,C14))>0,\"Tuvojas termiņš!\",\"\"))","v":""},{"$f":"IF(LEN(D14)=0,\"\",IF(COUNTIF(Uzdevumi[IZPILDES DATUMS],DATE(NedGads,NeMēnešaNum,D14))>0,\"Tuvojas termiņš!\",\"\"))","v":""},{"$f":"IF(LEN(E14)=0,\"\",IF(COUNTIF(Uzdevumi[IZPILDES DATUMS],DATE(NedGads,NeMēnešaNum,E14))>0,\"Tuvojas termiņš!\",\"\"))","v":""},{"$f":"IF(LEN(F14)=0,\"\",IF(COUNTIF(Uzdevumi[IZPILDES DATUMS],DATE(NedGads,NeMēnešaNum,F14))>0,\"Tuvojas termiņš!\",\"\"))","v":""},{"$f":"IF(LEN(G14)=0,\"\",IF(COUNTIF(Uzdevumi[IZPILDES DATUMS],DATE(NedGads,NeMēnešaNum,G14))>0,\"Tuvojas termiņš!\",\"\"))","v":""},{"$f":"IF(LEN(H14)=0,\"\",IF(COUNTIF(Uzdevumi[IZPILDES DATUMS],DATE(NedGads,NeMēnešaNum,H14))>0,\"Tuvojas termiņš!\",\"\"))","v":""}]
[null,{"$f":"IFERROR(IF(B14=\"\",IF(AND(ISNUMBER(A16),A16<MēnešaPēdējāDiena_Nedēļa),A16+1,$H$14+COLUMN(A$2)),IF(B14+7>MēnešaPēdējāDiena_Nedēļa,\"\",INDEX(NeMēnešaSkats,NeNedēļa,COLUMN(A$2))+7)),\"\")","v":5},{"$f":"IFERROR(IF(C14=\"\",IF(AND(ISNUMBER(B16),B16<MēnešaPēdējāDiena_Nedēļa),B16+1,$H$14+COLUMN(B$2)),IF(C14+7>MēnešaPēdējāDiena_Nedēļa,\"\",INDEX(NeMēnešaSkats,NeNedēļa,COLUMN(B$2))+7)),\"\")","v":6},{"$f":"IFERROR(IF(D14=\"\",IF(AND(ISNUMBER(C16),C16<MēnešaPēdējāDiena_Nedēļa),C16+1,$H$14+COLUMN(C$2)),IF(D14+7>MēnešaPēdējāDiena_Nedēļa,\"\",INDEX(NeMēnešaSkats,NeNedēļa,COLUMN(C$2))+7)),\"\")","v":7},{"$f":"IFERROR(IF(E14=\"\",IF(AND(ISNUMBER(D16),D16<MēnešaPēdējāDiena_Nedēļa),D16+1,$H$14+COLUMN(D$2)),IF(E14+7>MēnešaPēdējāDiena_Nedēļa,\"\",INDEX(NeMēnešaSkats,NeNedēļa,COLUMN(D$2))+7)),\"\")","v":8},{"$f":"IFERROR(IF(F14=\"\",IF(AND(ISNUMBER(E16),E16<MēnešaPēdējāDiena_Nedēļa),E16+1,$H$14+COLUMN(E$2)),IF(F14+7>MēnešaPēdējāDiena_Nedēļa,\"\",INDEX(NeMēnešaSkats,NeNedēļa,COLUMN(E$2))+7)),\"\")","v":9},{"$f":"IFERROR(IF(G14=\"\",IF(AND(ISNUMBER(F16),F16<MēnešaPēdējāDiena_Nedēļa),F16+1,$H$14+COLUMN(F$2)),IF(G14+7>MēnešaPēdējāDiena_Nedēļa,\"\",INDEX(NeMēnešaSkats,NeNedēļa,COLUMN(F$2))+7)),\"\")","v":10},{"$f":"IFERROR(IF(H14=\"\",IF(AND(ISNUMBER(G16),G16<MēnešaPēdējāDiena_Nedēļa),G16+1,$H$14+COLUMN(G$2)),IF(H14+7>MēnešaPēdējāDiena_Nedēļa,\"\",INDEX(NeMēnešaSkats,NeNedēļa,COLUMN(G$2))+7)),\"\")","v":11}]
[null,{"$f":"IF(LEN(B16)=0,\"\",IF(COUNTIF(Uzdevumi[IZPILDES DATUMS],DATE(NedGads,NeMēnešaNum,B16))>0,\"Tuvojas termiņš!\",\"\"))","v":""},{"$f":"IF(LEN(C16)=0,\"\",IF(COUNTIF(Uzdevumi[IZPILDES DATUMS],DATE(NedGads,NeMēnešaNum,C16))>0,\"Tuvojas termiņš!\",\"\"))","v":""},{"$f":"IF(LEN(D16)=0,\"\",IF(COUNTIF(Uzdevumi[IZPILDES DATUMS],DATE(NedGads,NeMēnešaNum,D16))>0,\"Tuvojas termiņš!\",\"\"))","v":""},{"$f":"IF(LEN(E16)=0,\"\",IF(COUNTIF(Uzdevumi[IZPILDES DATUMS],DATE(NedGads,NeMēnešaNum,E16))>0,\"Tuvojas termiņš!\",\"\"))","v":""},{"$f":"IF(LEN(F16)=0,\"\",IF(COUNTIF(Uzdevumi[IZPILDES DATUMS],DATE(NedGads,NeMēnešaNum,F16))>0,\"Tuvojas termiņš!\",\"\"))","v":""},{"$f":"IF(LEN(G16)=0,\"\",IF(COUNTIF(Uzdevumi[IZPILDES DATUMS],DATE(NedGads,NeMēnešaNum,G16))>0,\"Tuvojas termiņš!\",\"\"))","v":""},{"$f":"IF(LEN(H16)=0,\"\",IF(COUNTIF(Uzdevumi[IZPILDES DATUMS],DATE(NedGads,NeMēnešaNum,H16))>0,\"Tuvojas termiņš!\",\"\"))","v":""}]